Cogmind - Beta 16.1 @@@ ROGUE MODE // 2026.02.21 @ 14:04:20 Player: Starcat Lazuli Result: Destroyed by Y-64 Sentinel with Wave Gun Performance ------------- Evolutions (5) 2500 Regions Visited (9) 1800 Robots Destroyed (73) 365 Value Destroyed (2276) 2276 Prototype IDs (9) 180 Alien Tech Used (0) 0 Bonus (180) 180 TOTAL SCORE: 7301 Bonus ------- Follower Combat Kills 180 Cogmind --------- Core Integrity 0/1000 Matter 110/300 Energy 87/100 System Corruption 3% Temperature Cool (9) Movement Core (50) Location -5/Factory Parts ------- > --- POWER (2) -------- (None) > --- PROPULSION (4) --- (None) > --- UTILITY (8) ------ (None) > --- WEAPON (3) ------- (None) > --- INVENTORY (5) ---- Neutrino Core Light Quantum Reactor Compact Matter Pod (0) System Shield Peak State ------------ > --- POWER ------------ Light Nuclear Core Light Quantum Reactor > --- PROPULSION ------- Carbon-fiber Leg Improved Titanium Leg Improved Titanium Leg Armored Leg > --- UTILITY ---------- Large Storage Unit Advanced Visual Processing Unit Improved Terrain Scanner Seismic Detector Matter Filter Improved Weapon Cycler Focal Shield Advanced Shield Generator > --- WEAPON ----------- Minigun Heavy Machine Gun Advanced Assault Cannon > --- INVENTORY -------- Carbon-fiber Leg VSS Leg Flexi-carbon Leg Compact Matter Pod Hacking Suite System Shield Minigun Heavy Flail [Rating: 71] Favorites ----------- Power Improved Ion Engine Engine Improved Ion Engine Power Core Light Nuclear Core Reactor Light Quantum Reactor Propulsion Aluminum Leg Leg Aluminum Leg Hover Unit Gravmag System Utility Large Storage Unit Device Seismic Detector Storage Large Storage Unit Processor Advanced Visual Processing Unit Protection Light Armor Plating Weapon Minigun Energy Gun Heavy Particle Gun Energy Cannon Advanced Beam Cannon Ballistic Gun Minigun Ballistic Cannon Advanced Assault Cannon Launcher Grenade Launcher Impact Weapon Heavy Flail Build | -11 -10 -10 -9 -8 -7 -7 -7 -6 -5 ------- Run | Yrd Mat Min Mat Mat Fac Low Low Fac Fac Slots Evolved 10 | . . . 2 2 2 . . 2 2 Power 1 | . . . . . . . . 1 . Propulsion 2 | . . . 2 . . . . . . Utility 6 | . . . . 1 2 . . 1 2 Weapon 1 | . . . . 1 . . . . . Parts Attached 89 | 7 . 4 7 24 11 3 . 9 24 Power 15 | 1 . 1 2 1 1 . . 2 7 Engine 10 | 1 . 1 2 1 1 . . 1 3 Core 4 | . . . . . . . . 1 3 Reactor 1 | . . . . . . . . . 1 Propulsion 23 | 2 . . 2 6 2 . . 3 8 Treads . | . . . . . . . . . . Leg 21 | 2 . . 2 6 2 . . 3 6 Wheel . | . . . . . . . . . . Hover 2 | . . . . . . . . . 2 Flight . | . . . . . . . . . . Utility 26 | 2 . 1 1 5 5 1 . 3 8 Device 12 | 1 . 1 . 2 2 . . 1 5 Storage 4 | 1 . . 1 1 . . . . 1 Processor 4 | . . . . . 2 . . 1 1 Hackware . | . . . . . . . . . . Protection 6 | . . . . 2 1 1 . 1 1 Artifact . | . . . . . . . . . . Weapon 25 | 2 . 2 2 12 3 2 . 1 1 Energy Gun 3 | . . 1 . 2 . . . . . Energy Cannon 1 | . . . 1 . . . . . . Ballistic Gun 16 | 2 . . 1 8 3 . . 1 1 Ballistic Cannon 2 | . . . . 1 . 1 . . . Launcher 2 | . . 1 . . . 1 . . . Special Weapon . | . . . . . . . . . . Impact Weapon 1 | . . . . 1 . . . . . Slashing Weapon . | . . . . . . . . . . Piercing Weapon . | . . . . . . . . . . Special Melee Weapon . | . . . . . . . . . . Unidentified Prototypes 7 | . . . 2 4 . . . 1 . Parts Lost 29 | . . . . 5 . . . . 24 Power 6 | . . . . 1 . . . . 5 Propulsion 9 | . . . . 2 . . . . 7 Utility 8 | . . . . 1 . . . . 7 Weapon 6 | . . . . 1 . . . . 5 Highest Loss Streak 9 | . . . . 4 . . . . 9 To Critical Strikes . | . . . . . . . . . . Average Backups 13 | 3 6 8 10 14 14 15 15 14 10 Power 1 | . 1 1 1 1 1 1 1 . 1 Propulsion 3 | 1 2 2 3 4 4 5 5 4 2 Utility 4 | . 2 4 3 4 4 5 5 4 3 Weapon 3 | . 1 1 3 4 4 4 4 4 3 Tool/Special . | . . . . . . . . . . Unused Backups 19 | . 1 1 . 8 2 . . 1 6 Power 4 | . . 1 . 1 . . . . 2 Propulsion 4 | . . . . 2 . . . . 2 Utility 7 | . . . . 2 2 . . 1 2 Weapon 3 | . 1 . . 2 . . . . . Tool/Special 1 | . . . . 1 . . . . . Average Slot Usage (%) 97 | . 100 100 96 99 99 100 100 99 86 Engine 7 | . 14 14 11 8 7 7 7 10 2 Leg 29 | . 28 28 40 36 30 30 30 26 20 Device 16 | . 14 14 11 15 14 14 15 15 23 Storage 7 | . 14 14 11 9 7 7 7 6 4 Processor 7 | . . . . . 14 15 15 13 7 Protection 1 | . . . . 2 . . . 3 2 Ballistic Gun 16 | . 28 17 12 21 16 21 15 9 10 Ballistic Cannon 1 | . . . . 1 . 1 7 6 1 Impact Weapon 1 | . . . . . 5 . . 3 2 Peak Build Rating 71 | 7 8 11 14 28 33 37 33 53 71 Average Rating 33 | 5 7 8 12 23 31 32 33 47 57 On Entrance 21 | . 7 8 11 13 25 32 33 33 52 Avg Prop Armor Cover (%) 3 | . . . . . . . . . 3 Naked Turns 33 | . . . . . . . . . 33 Heaviest Build 70 | 13 13 19 33 45 47 56 41 67 70 Greatest Support 71 | 20 20 20 40 47 47 47 47 67 71 Greatest Overweight (x) 1 | 1 . . . 1 . 1 . . 1 Average Overweight (x) . | . . . . . . . . . . Largest Inventory Capacity 15 | 8 8 8 15 15 15 15 15 15 15 Average Capacity 14 | 7 8 8 14 15 15 15 15 15 14 Most Carried 15 | 5 8 8 13 15 15 15 15 15 15 Average Carried 13 | 3 7 7 10 14 14 15 15 14 10 Final Capacity 15 | 8 8 8 15 15 15 15 15 15 5 Final Carried 15 | 5 8 8 13 15 15 15 15 15 4 Class Distribution -------------------- 28% | Skirmisher 16% | Mutant 15% | Scavenger-Skirmisher 11% | Assassin 8% | Scavenger-Tank 7% | Scavenger-Assassin 7% | Scavenger-Mutant Dominant Class ---------------- Mutant | -10/Materials Mutant | -10/Mines Scavenger-Mutant | -9/Materials Scavenger-Skirmisher | -8/Materials Scavenger-Assassin | -7/Factory Skirmisher | -7/Lower Caves Skirmisher | -7/Lower Caves Assassin | -6/Factory Mutant | -5/Factory Resources | -11 -10 -10 -9 -8 -7 -7 -7 -6 -5 ----------- Run | Yrd Mat Min Mat Mat Fac Low Low Fac Fac Matter Collected 3311 | 233 . 106 313 1088 310 132 6 422 701 Remotely 443 | . . . . . . . . . 443 Salvage Created 2883 | 11 . . 373 1176 294 111 . 108 810 Parts 166 | 5 . . 20 67 10 10 . 7 47 Haulers Intercepted 9 | . . . 2 4 2 . . . 1 Recyclers Shooed 2 | . . . . . . . . . 2 Parts Field Recycled . | . . . . . . . . . . Retrieved Matter . | . . . . . . . . . . Parts Self-Destructed 6 | . . . . . . 6 . . . Prevented 2 | . . . . . . 2 . . . Parts Restored . | . . . . . . . . . . Kills | -11 -10 -10 -9 -8 -7 -7 -7 -6 -5 ------- Run | Yrd Mat Min Mat Mat Fac Low Low Fac Fac Combat Hostiles Destroyed 49 | . . . 9 17 4 4 . 2 13 Guns 30 | . . . 2 15 4 . . . 9 Cannons 8 | . . . 1 2 . . . 2 3 AOE 10 | . . . 6 . . 4 . . . Classes Destroyed 13 | 1 . . 5 5 1 . . . 1 Worker 2 | . . . . 2 . . . . . Builder 7 | . . . . 1 3 . . . 3 Tunneler 1 | 1 . . . . . . . . . Hauler 9 | . . . 2 4 2 . . . 1 Recycler 2 | . . . 1 1 . . . . . Watcher 3 | . . . . 1 . . . 1 1 Swarmer 13 | . . . 5 . 2 4 . . 2 Cutter 1 | . . . . . . . . . 1 Grunt 16 | . . . 3 8 1 . . . 4 Brawler 2 | . . . . 1 . . . 1 . Sentry 7 | . . . 1 5 . . . . 1 Hunter 6 | . . . . 3 . . . . 3 Programmer 4 | . . . . . 1 . . 1 2 Best Kill Streak 9 | 1 . . 9 7 2 4 . 1 5 Combat Bots Only 7 | . . . 7 5 2 4 . 1 4 Max Kills in Single Turn 3 | 1 . . 3 2 1 3 . 1 1 Gunslinging . | . . . . . . . . . . Exploded 3 | . . . 2 . . 3 . . . Melee . | . . . . . . . . . . Uniques/NPCs Destroyed . | . . . . . . . . . . Combat | -11 -10 -10 -9 -8 -7 -7 -7 -6 -5 -------- Run | Yrd Mat Min Mat Mat Fac Low Low Fac Fac Hostile Shots Fired 551 | . . . 32 99 26 24 . 26 344 Missed 183 | . . . 15 27 9 10 . 12 110 Hits 368 | . . . 17 72 17 14 . 14 234 Melee 12 | . . . . . . . . 6 6 Projectile 356 | . . . 17 72 17 14 . 8 228 AOE 4 | . . . . . . . . . 4 Critical Strikes 19 | . . . . 2 . . . . 17 Part Disruptions 2 | . . . . . . . . 1 1 Damage Taken 6317 | . . . 226 1086 262 218 . 306 4219 Core 1280 | . . . 40 128 29 . . 83 1000 Absorbed by Shields 357 | . . . . . . . . . 357 Ignored by Resistances 6 | . . . . . . . . . 6 Core Remaining (%) 91 | 100 . 100 90 76 . . 95 90 . Volleys Fired 181 | 3 2 2 30 54 13 7 . 8 62 Largest 3 | 2 2 1 2 3 3 3 . 3 3 Hottest 120 | 40 40 30 88 120 75 90 . 93 95 Shots Fired 445 | 6 4 2 55 152 39 10 . 24 153 Gun 373 | 6 4 1 40 137 39 2 . 16 128 Cannon 59 | . . . 10 15 . 5 . 8 21 Launcher 13 | . . 1 5 . . 3 . . 4 Special . | . . . . . . . . . . Kinetic 408 | 6 4 1 37 141 39 7 . 24 149 Thermal 24 | . . . 13 11 . . . . . Explosive 6 | . . 1 5 . . . . . . Electromagnetic 7 | . . . . . . 3 . . 4 Robot Hit Streak 14 | 1 3 . 11 13 14 7 . 3 7 Robot Miss Streak 5 | 1 1 1 3 4 5 1 . 3 3 Penetration Max 1 | . . . . 1 . . . . 1 Secondary Targets 4 | . . . 1 1 . . . . 2 Max Gunslinging Chain 1 | . . . 1 1 . . . . 1 Shots Hit Robots 278 | 3 3 . 36 98 26 4 . 15 93 Core Hits 134 | 2 . . 20 52 9 6 . 5 40 Critical Kills 2 | . . . . 1 . . . . 1 Critical Parts Destroyed 2 | . . . . . 1 . . . 1 Critical Strikes 5 | . . . . 2 1 . . . 2 Burn 1 | . . . . 1 . . . . . Destroy 3 | . . . . 1 . . . . 2 Smash 1 | . . . . . 1 . . . . Melee Attacks 59 | . . . . 8 24 . . 11 16 Impact 59 | . . . . 8 24 . . 11 16 Slashing . | . . . . . . . . . . Piercing . | . . . . . . . . . . Sneak Attacks 4 | . . . . . 4 . . . . Combat Hostiles . | . . . . . . . . . . Follow-up Attacks . | . . . . . . . . . . Damage Inflicted 6050 | 30 24 . 817 1707 733 218 . 361 2160 Guns 3786 | 30 24 . 289 1459 421 36 . 188 1339 Cannons 849 | . . . 144 207 . . . 173 325 Explosions 915 | . . . 384 . . 182 . . 349 Melee 495 | . . . . 41 312 . . . 142 Ramming 5 | . . . . . . . . . 5 Kinetic 4284 | 30 24 . 261 1487 421 36 . 361 1664 Thermal 351 | . . . 172 179 . . . . . Explosive 384 | . . . 384 . . . . . . Electromagnetic 531 | . . . . . . 182 . . 349 Impact 495 | . . . . 41 312 . . . 142 Slashing . | . . . . . . . . . . Piercing . | . . . . . . . . . . Highest Corruption 3 | . . . . . 2 2 2 1 3 Average Corruption 1 | . . . . . 1 2 2 1 1 Corruption Purged . | . . . . . . . . . . Corruption Blocked . | . . . . . . . . . . Effects 21 | . . . . . 2 12 2 . 5 Message Errors 6 | . . . . . . 2 2 . 2 Matter Fused 2 | . . . . . . 1 . . 1 Heat Flow Errors 3 | . . . . . . 2 . . 1 Energy Discharges 3 | . . . . . 1 1 . . 1 Data Loss (minor) 6 | . . . . . 1 5 . . . Misfires 1 | . . . . . . 1 . . . Overload Shots . | . . . . . . . . . . Overflow Damage 344 | . . . 55 6 240 . . . 43 Projectiles 4 | . . . . . . . . . 4 Explosions 56 | . . . 55 . . . . . 1 Melee 284 | . . . . 6 240 . . . 38 Knockbacks 12 | . . . . 6 2 . . . 4 Impact 4 | . . . . 1 2 . . . 1 Kinetic 7 | . . . . 4 . . . . 3 Secondary 1 | . . . . 1 . . . . . Self-Inflicted Damage 2 | . . . . . . . . . 2 Shots . | . . . . . . . . . . Rammed 1 | . . . . . . . . . 1 Targets Rammed 1 | . . . . . . . . . 1 Kicked . | . . . . . . . . . . Crushed . | . . . . . . . . . . Highest Temperature 287 | . . . 176 283 104 209 . 126 287 Average Temperature 73 | . . . 56 63 38 81 . 50 94 Received Heat Transfer 902 | . . . 84 315 27 . . 45 431 Effects 1 | . . . . . . . . . 1 Energy Bleed 1 | . . . . . . . . . 1 Siege Activations . | . . . . . . . . . . Martial Activations . | . . . . . . . . . . Shielding Activations . | . . . . . . . . . . Robots Disrupted . | . . . . . . . . . . Combat Hostiles . | . . . . . . . . . . Robots Corrupted 6 | . . . . 1 4 . . . 1 Combat Hostiles 1 | . . . . . . . . . 1 Parts Fried 11 | . . . . 1 9 . . . 1 Impact Corruptions 12 | . . . . 1 10 . . . 1 Robots Melted . | . . . . . . . . . . Combat Hostiles . | . . . . . . . . . . Parts Melted 4 | . . . 3 1 . . . . . Heat Transferred 740 | . . . 333 407 . . . . . Parts Sabotaged . | . . . . . . . . . . Parts Stolen . | . . . . . . . . . . Parts Stripped . | . . . . . . . . . . Power Chain Reactions 1 | . . . . . . 1 . . . Alert | -11 -10 -10 -9 -8 -7 -7 -7 -6 -5 ------- Run | Yrd Mat Min Mat Mat Fac Low Low Fac Fac Maximum Alert Level 1 | . . . 1 1 . . . . . Low Security (%) 91 | 100 100 100 69 80 100 . . 100 100 Level 1 8 | . . . 30 19 . . . . . Level 2 . | . . . . . . . . . . Level 3 . | . . . . . . . . . . Level 4 . | . . . . . . . . . . Level 5 . | . . . . . . . . . . High Security . | . . . . . . . . . . Max Security . | . . . . . . . . . . Peak Influence 309 | 5 . 11 286 309 68 . . 46 100 Initial 111 | . . . . 111 . . . . . Average 55 | . . . 111 111 7 . . 6 46 Influence Increases 2145 | 5 . 11 476 634 186 90 . 108 635 Destroy 0b10 Robot/C 1140 | . . . 340 340 80 80 . 40 260 Destroy 0b10 Robot/NC 120 | 5 . . 15 45 25 . . 5 25 Destroy Leader 304 | . . . 64 120 24 10 . 22 64 Allied During Kill 31 | . . . 31 . . . . . . Successful Hack 53 | . . . . 15 24 . . . 14 Disable Machine 45 | . . . . 45 . . . . . Destroy Structure 107 | . . 11 26 9 18 . . 11 32 Lose Combat Pursuer 345 | . . . . 60 15 . . 30 240 Influence Decreases 2064 | 5 . 11 210 900 129 81 66 108 554 Entered New Map 190 | . . . . 155 . 22 13 . . Time Decay 1311 | 5 . 11 170 428 129 59 53 108 348 Lost Part 217 | . . . . 11 . . . . 206 Lost Ally 40 | . . . 40 . . . . . . Purge Threat 306 | . . . . 306 . . . . . Squads Dispatched 17 | . 1 . 2 2 4 . . 1 7 Investigation . | . . . . . . . . . . Extermination 4 | . . . . . 1 . . 1 2 Reinforcement 10 | . 1 . 2 2 1 . . . 4 Assault . | . . . . . . . . . . Garrison 3 | . . . . . 2 . . . 1 Intercept . | . . . . . . . . . . Searches Triggered . | . . . . . . . . . . Construction Impeded 2 | . . . . . . . . . 2 Haulers Reinforced 1 | . . . . . 1 . . . . Active Scanning Responses . | . . . . . . . . . . Cargo Convoy Interrupts . | . . . . . . . . . . Stealth | -11 -10 -10 -9 -8 -7 -7 -7 -6 -5 --------- Run | Yrd Mat Min Mat Mat Fac Low Low Fac Fac Distress Signals 8 | . 1 . 1 2 . . . . 4 Communications Jammed . | . . . . . . . . . . Distress Signals . | . . . . . . . . . . Times Spotted 126 | . 3 . 27 28 6 4 . 5 53 Peak Tracking Total 10 | . 3 . 7 6 3 4 . 3 10 Tactical Retreats 14 | . . . . 4 1 . . 1 8 Traps | -11 -10 -10 -9 -8 -7 -7 -7 -6 -5 ------- Run | Yrd Mat Min Mat Mat Fac Low Low Fac Fac Traps Triggered 1 | . . . . . . . . . 1 Indirectly . | . . . . . . . . . . Trap Hack Attempts . | . . . . . . . . . . Triggered . | . . . . . . . . . . Disarmed . | . . . . . . . . . . Reprogrammed . | . . . . . . . . . . Reused . | . . . . . . . . . . Traps Extracted . | . . . . . . . . . . Installed . | . . . . . . . . . . Triggered . | . . . . . . . . . . Machines | -11 -10 -10 -9 -8 -7 -7 -7 -6 -5 ---------- Run | Yrd Mat Min Mat Mat Fac Low Low Fac Fac Machines Disabled 3 | . . . . 3 . . . . . Max in Single Turn 1 | . . . . 1 . . . . . Machines Repaired . | . . . . . . . . . . Machines Dismantled . | . . . . . . . . . . Machines Sabotaged . | . . . . . . . . . . Overloaded Fab Kills . | . . . . . . . . . . Hacking | -11 -10 -10 -9 -8 -7 -7 -7 -6 -5 --------- Run | Yrd Mat Min Mat Mat Fac Low Low Fac Fac Machines Accessed 19 | . 2 . 1 6 5 . . 4 1 Terminals 12 | . 1 . 1 5 2 . . 3 . Fabricators 2 | . . . . . 1 . . . 1 Repair Stations 1 | . . . . . 1 . . . . Recycling Units 2 | . 1 . . . 1 . . . . Scanalyzers 2 | . . . . 1 . . . 1 . Garrison Access . | . . . . . . . . . . Total Hacks 51 | . 3 . 2 25 13 . . 7 1 Successful 22 | . 2 . . 12 7 . . . 1 Failed 28 | . 1 . 2 12 6 . . 7 . Catastrophic 6 | . . . 1 2 2 . . 1 . Database Lockouts 1 | . . . . 1 . . . . . Manual 15 | . . . 2 8 3 . . 2 . Terminals 39 | . 2 . 2 22 7 . . 6 . Fabricators 3 | . . . . . 2 . . . 1 Repair Stations 2 | . . . . . 2 . . . . Recycling Units 3 | . 1 . . . 2 . . . . Scanalyzers 4 | . . . . 3 . . . 1 . Garrison Access . | . . . . . . . . . . Terminal Hacks 13 | . 1 . . 10 2 . . . . Record 2 | . . . . 2 . . . . . Prototype ID Bank 1 | . . . . 1 . . . . . Branch Access Points 1 | . . . . 1 . . . . . Emergency Access Points 1 | . . . . 1 . . . . . Terminal Index 1 | . . . . 1 . . . . . Unreport Threat 3 | . . . . 3 . . . . . Locate Traps 3 | . 1 . . . 2 . . . . Hauler Manifests 1 | . . . . 1 . . . . . Fabricator Hacks 1 | . . . . . . . . . 1 Build 1 | . . . . . . . . . 1 Repair Station Hacks 1 | . . . . . 1 . . . . Scan Component 1 | . . . . . 1 . . . . Recycling Unit Hacks 3 | . 1 . . . 2 . . . . Retrieve Matter 2 | . 1 . . . 1 . . . . Retrieve Components 1 | . . . . . 1 . . . . Scanalyzer 1 | . . . . 1 . . . . . Retrieve Study 1 | . . . . 1 . . . . . Garrison Access Hacks . | . . . . . . . . . . Unauthorized Hacks 3 | . . . . 1 2 . . . . Terminals 3 | . . . . 1 2 . . . . Botnet 3 | . . . . 1 2 . . . . Fabricators . | . . . . . . . . . . Repair Stations . | . . . . . . . . . . Recycling Units . | . . . . . . . . . . Scanalyzers . | . . . . . . . . . . Garrison Access . | . . . . . . . . . . Data Cores Recovered . | . . . . . . . . . . Used . | . . . . . . . . . . Hacking Detections 15 | . 1 . 1 5 4 . . 4 . Full Trace Events . | . . . . . . . . . . Feedback Events . | . . . . . . . . . . Feedback Blocked . | . . . . . . . . . . Robot Schematics Acquired . | . . . . . . . . . . Robots Built . | . . . . . . . . . . Authchips . | . . . . . . . . . . Time . | . . . . . . . . . . Total Robot Build Rating . | . . . . . . . . . . Part Schematics Acquired . | . . . . . . . . . . Parts Built 2 | . . . . . . . . . 2 Authchips . | . . . . . . . . . . Time 69 | . . . . . . . . . 69 Total Part Build Rating 18 | . . . . . . . . . 18 Part Studies Acquired 1 | . . . . 1 . . . . . Parts Repaired . | . . . . . . . . . . Time . | . . . . . . . . . . Parts Recycled . | . . . . . . . . . . Recycled Matter . | . . . . . . . . . . Retrieved Matter . | . . . . . . . . . . Retrieved Components 2 | . . . . . 2 . . . . Parts Scanalyzed . | . . . . . . . . . . Part Schematics Acquired . | . . . . . . . . . . Parts Damaged . | . . . . . . . . . . Bothacking | -11 -10 -10 -9 -8 -7 -7 -7 -6 -5 ------------ Run | Yrd Mat Min Mat Mat Fac Low Low Fac Fac Used RIF Installer . | . . . . . . . . . . Robots Hacked . | . . . . . . . . . . Non-combat . | . . . . . . . . . . Combat . | . . . . . . . . . . Robot Hacks Applied . | . . . . . . . . . . Relay Couplers Released . | . . . . . . . . . . Fabnet Peak Effective % . | . . . . . . . . . . Robots Rewired . | . . . . . . . . . . Allies Hacked . | . . . . . . . . . . Hacks Repelled . | . . . . . . . . . . Allies | -11 -10 -10 -9 -8 -7 -7 -7 -6 -5 -------- Run | Yrd Mat Min Mat Mat Fac Low Low Fac Fac Total Allies 2 | . . 2 . . . . . . . Largest Group 2 | . . 2 2 . . . . . . Highest-Rated Group 42 | . . 42 42 . . . . . . Highest-Rated Ally 31 | . . 31 31 . . . . . . Total Orders . | . . . . . . . . . . Ally Attacks 38 | . . . 38 . . . . . . Total Damage 575 | . . . 575 . . . . . . Kills 8 | . . . 8 . . . . . . Allies Corrupted . | . . . . . . . . . . Allies Melted . | . . . . . . . . . . Intel | -11 -10 -10 -9 -8 -7 -7 -7 -6 -5 ------- Run | Yrd Mat Min Mat Mat Fac Low Low Fac Fac Active Infowar (turns) 5995 | 17 196 145 357 1641 844 751 232 745 1067 Optics 3637 | . . . . . 842 751 232 745 1067 Terrain 5084 | . . 110 2 1585 763 728 232 663 1001 Seismic 5213 | 17 196 35 355 1165 843 729 232 643 998 Robot Analysis Total . | . . . . . . . . . . Derelict Logs Recovered 1 | . . . . . . . 1 . . Drone Launches . | . . . . . . . . . . Drone Recoveries . | . . . . . . . . . . Exploration | -11 -10 -10 -9 -8 -7 -7 -7 -6 -5 ------------- Run | Yrd Mat Min Mat Mat Fac Low Low Fac Fac Turns Passed 6189 | 104 196 145 375 1641 844 751 232 745 1156 Spaces Moved 3752 | 65 139 100 184 811 511 589 195 523 635 Core 59 | 2 . . . . . . . . 57 Treads . | . . . . . . . . . . Legs 3622 | 63 139 100 184 811 511 589 195 523 507 Wheels . | . . . . . . . . . . Hover 71 | . . . . . . . . . 71 Flight . | . . . . . . . . . . Fastest Speed 50 | 50 120 120 120 118 118 118 118 118 50 Average Speed 118 | 122 120 120 120 119 118 118 118 121 113 Slowest Speed 196 | 190 120 120 120 190 118 188 118 125 196 Overloaded Moves . | . . . . . . . . . . Propulsion Burnouts . | . . . . . . . . . . Robots Hopped . | . . . . . . . . . . Potential Cave-ins . | . . . . . . . . . . Cave-ins Triggered . | . . . . . . . . . . Exploration Rate (%) 29 | 4 34 20 23 70 22 70 22 14 15 Regions Visited 9 Branch Regions 3 Pre-discovered Areas . | . . . . . . . . . . Known Exits Taken . | . . . . . . . . . . Unknown Exits Taken 9 | 1 1 1 1 1 1 1 1 1 . Scrap Searched 1 | . . . . . . 1 . . . Spaces Dug 63 | . . 11 . 7 17 3 . 10 15 Terrain Destroyed 104 | . . 11 36 8 17 5 . 11 16 Melee 47 | . . . . 7 17 . . 10 13 Projectile 9 | . . . . 1 . 4 . 1 3 AOE 48 | . . 11 36 . . 1 . . . Terrain Rammed . | . . . . . . . . . . Walls Destroyed . | . . . . . . . . . . Machines Disabled . | . . . . . . . . . . Actions | -11 -10 -10 -9 -8 -7 -7 -7 -6 -5 --------- Run | Yrd Mat Min Mat Mat Fac Low Low Fac Fac Total 5068 | 81 165 122 284 1354 690 631 197 599 945 Wait 782 | 2 20 11 50 387 101 28 3 11 169 Move 3743 | 64 138 99 183 810 510 588 194 522 635 Hop . | . . . . . . . . . . Pick Up 65 | 5 4 1 8 21 8 . . 8 10 Fast Attach 42 | 7 . 3 2 6 3 . . 7 14 Attach 31 | . . . . 7 3 . . 5 16 Detach 8 | . . . . 1 . . . 3 4 Swap 89 | . . 2 8 33 17 8 . 12 9 Drop 67 | . 1 4 3 27 11 . . 12 9 Fire 181 | 3 2 2 30 54 13 7 . 8 62 Melee 59 | . . . . 8 24 . . 11 16 Ram 1 | . . . . . . . . . 1 Kick . | . . . . . . . . . . Crush . | . . . . . . . . . . Escape Stasis . | . . . . . . . . . . Rewire . | . . . . . . . . . . Trap . | . . . . . . . . . . Miscellaneous . | . . . . . . . . . . Route ------- -11/Scrapyard -10/Materials -10/Mines -9/Materials -8/Materials (discovered 3 exits: *Fac x3) -7/Factory -7/Lower Caves -7/Lower Caves -6/Factory (discovered 2 exits: *Fac / Low) -5/Factory (discovered 1 exit: [*Fac]) History --------- Turn | Location | Event 39 | -11/Scrapyard | Discovered new exit (range 12) 105 | -11/Scrapyard | Entered Materials 280 | -10/Materials | Discovered new exit (range 13) 301 | -10/Materials | Entered Mines 318 | -10/Mines | Build established: Mutant 400 | -10/Mines | Discovered new exit (range 10) 412 | -10/Mines | Joined a pair of Derelicts in attacking an 0b10 outpost 446 | -10/Mines | Entered Materials 446 | -9/Materials | Accompanied by 2 allies 446 | -9/Materials | Evolved 2 slots: Propulsion x2 451 | -9/Materials | Led the pair of lost Derelicts to an unsafe place 731 | -9/Materials | Destroyed 7 combat bots 779 | -9/Materials | Build established: Scavenger-Mutant 801 | -9/Materials | Discovered new exit (range 16) 821 | -9/Materials | Entered another Materials area 821 | -8/Materials | Evolved 2 slots: Utility x1, Weapon x1 971 | -8/Materials | Central database locked down 1156 | -8/Materials | Discovered new exit (range 4) 1444 | -8/Materials | Lost 4 parts (1p1n1u1w) 1829 | -8/Materials | Discovered new exit (range 4) 2353 | -8/Materials | Discovered new exit (range 11) 2462 | -8/Materials | Entered Factory 2462 | -7/Factory | Evolved 2 slots: Utility x2 2815 | -7/Factory | Build established: Scavenger-Assassin 2858 | -7/Factory | Found Powered Armor 3151 | -7/Factory | Garrison activated, responded to threat 3207 | -7/Factory | Discovered new exit (range 13) 3306 | -7/Factory | Entered Lower Caves 3555 | -7/Lower Caves | Build established: Skirmisher 3594 | -7/Lower Caves | Spotted B-75 Beast 3931 | -7/Lower Caves | Discovered new exit (range 13) 4057 | -7/Lower Caves | Entered another Lower Caves area 4143 | -7/Lower Caves | Learned 8 Factory zone layouts 4187 | -7/Lower Caves | Discovered new exit (range 5) 4188 | -7/Lower Caves | Encountered a Warlord checkpoint 4289 | -7/Lower Caves | Entered Factory 4289 | -6/Factory | Evolved 2 slots: Power x1, Utility x1 4290 | -6/Factory | Identified exit to Lower Caves 4826 | -6/Factory | Found Prototype Processor 4826 | -6/Factory | Identified Exp. Targeting Computer 4947 | -6/Factory | Discovered new exit (range 17) 5034 | -6/Factory | Entered another Factory area 5034 | -5/Factory | Evolved 2 slots: Utility x2 5238 | -5/Factory | Fabricated Lgt. Quantum Reactor (x2) 5480 | -5/Factory | Garrison activated, responded to threat 5558 | -5/Factory | Lost 9 parts (3p1n3u2w) 6101 | -5/Factory | Released all parts (12) 6115 | -5/Factory | Core integrity fell below 50% 6132 | -5/Factory | Lost 6 parts (1p3n1u1w) 6177 | -5/Factory | Core integrity fell below 20% 6190 | -5/Factory | Discovered new exit (range 14) 6190 | -5/Factory | Destroyed by Y-64 Sentinel with Wave Gun Last Messages --------------- 06172_ C-35 Carver knocked back. 06172_ Slug penetrates Construction Platform. 06172_ W-25 Informer sends out distress signal. 06173_ W-25 Informer destroyed. 06173_ Knocked back. 06174_ Slammed into K-01 Serf. 06174_ Destabilizing: Core damaged (-40). 06175_ Penetrated by Slug. 06177_ C-35 Carver destroyed. 06178_ Penetrated by Slug. 06180_ System corrupted: Energy discharge (-23). 06180_ Slug penetrates Construction Platform. 06181_ C-35 Carver knocked back. 06182_ Adv. Assault Cannon destroyed. 06182_ Knocked back. 06183_ Acquired 1 matter. 06184_ Imp. Gravmag System severed. 06185_ H-66 Slayer IFF system glitched. 06189_ Gravmag System severed. 06190_ EXIT=FOUND Map ----- +----------------------------------------------------+ | "" # #? #????????????????????????????? | | # #? #????????????????????????????? | | ###### #??#######????????????????????????????? | | ?????# #?????????????????????????????????????? | | ????# #?????????????????????????????????????? | | ?????# #????????#????????????????????????????? | | ?????# #?####### ????????????????????????????? | | ????## ### ????????????????????????????? | | ????# = ##????????###????????????????? | | ????# % % #??????? ?????????????????? | | ????# ! """" ####### """"???????????????? | | ????# """ =%/*% + """"???????????????? | | ????# """ %###"## """"???????????????? | | ????# % " # #??????????????????????? | | ????# # = #??????????????????????? | | ????# # #??????????????????????? | | H [ ] ##?????????????????????? | | "#?????????????????????? | | ##?????????????????????? | | ###### ###+####?????????????????????? | | ##+######????# c +?????????????????????? | | ##?????????????# =##?????????????????????? | | ???????????????## """" #???????###????????????? | | ????????????????# ""R"" c#####! #????????????? | | ??????????????#"" "" "" #????????????? | | ??????????????#" @ Y ???????? | | ??????????????#"F [[= ###??????????? | | ??????????????#"" [[= ##### #????????????? | | ??????????????### [[! #?????#+###????????????? | | ????????????????# #??????????????????????? | | ????????????????# #??????????????????????? | | ??????????????? #??????????????????????? | | ??????????????### #??????????????????????? | | ????????????????## ####k###??????????????????????? | | ?????????????????# ???# ?????????????????????????? | | ?????????????????#????# ?????????????????????????? | | ?????????????????????? ?????????????????????????? | | ?????????????????????? ?????????????????????????? | | ??????????????????????